fUST/lending_fUST_20250302
["ID","MTS","AMOUNT","RATE_DAILY","PERIOD"]
[355033264,1740876662369,-500.0,0.00025205,2]
[355033265,1740876662378,-4919.5,0.00025205,2]
[355033266,1740876662388,-500.0,0.00025205,2]
[355033267,1740876662398,-812.71,0.00025205,2]
[355033268,1740876662407,-500.0,0.00025205,2]
[355033269,1740876662417,-500.0,0.00025205,2]
[355033270,1740876662427,-500.0,0.00025205,2]
[355033271,1740876662436,-878.13,0.00025205,2]
[355033272,1740876662446,-500.0,0.00025205,2]
[355033273,1740876662456,-36107.27,0.00025205,2]
[355033274,1740876662467,-500.0,0.00025205,2]
[355033275,1740876662478,-3590.84,0.00025205,2]
[355033276,1740876662487,-500.0,0.00025205,2]
[355033277,1740876662497,-500.0,0.00025205,2]
[355033278,1740876662507,-7228.91,0.00025205,2]
[355033279,1740876662516,-543.06,0.00025205,2]
[355033280,1740876662526,-1703.92,0.00025205,2]
[355033281,1740876662535,-500.0,0.00025205,2]
[355033282,1740876662544,-500.0,0.00025205,2]
[355033283,1740876662556,-2043.53,0.00025205,2]
[355033284,1740876662566,-616.68,0.00025205,2]
[355033285,1740876662575,-733.47387,0.00025205,7]
[355033286,1740876662584,-1154.6,0.00025205,2]
[355033287,1740876662595,-1247.12,0.00025205,5]
[355033288,1740876662605,-500.0,0.00025205,2]
[355033289,1740876662615,-818.49,0.00025205,2]
[355033290,1740876662625,-500.0,0.00025205,2]
[355033291,1740876662634,-500.0,0.00025205,2]
[355033292,1740876662644,-500.0,0.00025205,2]
[355033293,1740876662654,-733.47387,0.00025205,7]
[355033294,1740876662663,-500.0,0.00025205,2]
[355033295,1740876662673,-2412.35,0.00025205,2]
[355033296,1740876662682,-151.0,0.00025205,7]
[355033297,1740876662692,-152.277099,0.00025205,7]
[355033298,1740876662702,-1362.0,0.00025205,2]
[355033299,1740876662711,-1545.66,0.00025205,2]
[355033300,1740876662721,-585.05,0.00025205,2]
[355033301,1740876662731,-500.0,0.00025205,2]
[355033302,1740876662740,-1882.552513,0.00025205,7]
[355033303,1740876662750,-1882.552513,0.00025205,7]
[355033304,1740876662759,-1033.67,0.00025205,2]
[355033305,1740876662769,-587.7,0.00025205,2]
[355033306,1740876662779,-151.0,0.00025205,7]
[355033307,1740876662788,-247.390395,0.00025205,7]
[355033308,1740876662797,-1882.552513,0.00025205,7]
[355033309,1740876662807,-819.26,0.00025205,2]
[355033310,1740876662817,-3425.27,0.00025205,2]
[355033311,1740876662828,-1882.552513,0.00025205,7]
[355033312,1740876662838,-500.0,0.00025205,2]
[355033313,1740876662847,-500.0,0.00025205,2]
[355033314,1740876662857,-581.49533621,0.00025205,2]
[355033315,1740876662867,-500.0,0.00025205,2]
[355033316,1740876662877,-376.988901,0.00025205,7]
[355033317,1740876662887,-376.988901,0.00025205,7]
[355033318,1740876662896,-717.02,0.00025205,2]
[355033319,1740876662906,-14813.08,0.00025205,2]
[355033320,1740876662915,-1333.48,0.00025205,2]
[355033321,1740876662925,-656.62,0.00025205,2]
[355033322,1740876662935,-376.988901,0.00025205,7]
[355033323,1740876662945,-376.988901,0.00025205,7]
[355033324,1740876662955,-500.0,0.00025205,2]
[355033325,1740876662969,-500.0,0.00025205,2]
[355033326,1740876662979,-500.0,0.00025205,2]
[355033327,1740876662990,-151.0,0.00025205,7]
[355033328,1740876663001,-500.0,0.00025205,2]
[355033329,1740876663013,-3291.1,0.00025205,2]
[355033330,1740876663024,-500.0,0.00025205,2]
[355033331,1740876663034,-587.42,0.00025205,2]
[355033332,1740876663045,-500.0,0.00025205,2]
[355033333,1740876663060,-1706.39,0.00025205,2]
[355033334,1740876663076,-19624.61182001,0.00025205,7]
[355033335,1740876663086,-500.0,0.00025205,2]
[355033336,1740876663097,-844.4,0.00025205,2]
[355033337,1740876663107,-6752.19,0.00025205,2]
[355033338,1740876663118,-500.99,0.00025205,2]
[355033339,1740876663128,-500.0,0.00025205,2]
[355033340,1740876663139,-500.0,0.00025205,2]
[355033341,1740876663151,-500.0,0.00025205,2]
[355033342,1740876663161,-500.0,0.00025205,2]
[355033343,1740876663171,-500.0,0.00025205,2]
[355033344,1740876663181,-500.0,0.00025205,2]
[355033345,1740876663192,-16914.22,0.00025205,2]
[355033346,1740876663202,-1159.29,0.00025205,2]
[355033347,1740876663212,-500.0,0.00025205,2]
[355033348,1740876663223,-5933.46,0.00025205,2]
[355033349,1740876663234,-500.0,0.00025205,2]
[355033350,1740876663246,-946.65,0.00025205,2]
[355033351,1740876663258,-1107.19,0.00025205,2]
[355033352,1740876663271,-500.0,0.00025205,2]
[355033353,1740876663283,-500.0,0.00025205,2]
[355033354,1740876663294,-500.0,0.00025205,2]
[355033355,1740876663308,-227.698802,0.00025205,7]
[355033356,1740876663320,-643.7,0.00025205,2]
[355033357,1740876663331,-644.22,0.00025205,2]
[355033358,1740876663342,-500.0,0.00025205,2]
[355033359,1740876663353,-500.0,0.00025205,2]
[355033360,1740876663441,-844.32,0.00025205,2]
[355033361,1740876663453,-500.0,0.00025205,2]
[355033362,1740876663463,-3865.73,0.00025205,2]
[355033363,1740876663473,-227.698802,0.00025205,7]
[355033364,1740876663483,-500.0,0.00025205,2]
[355033365,1740876663493,-500.0,0.00025205,2]
[355033366,1740876663503,-500.0,0.00025205,2]
[355033367,1740876663513,-500.0,0.00025205,2]
[355033368,1740876663523,-500.0,0.00025205,2]
[355033369,1740876663533,-500.0,0.00025205,2]
[355033370,1740876663544,-500.0,0.00025205,2]
[355033371,1740876663558,-500.0,0.00025205,2]
[355033372,1740876663574,-500.0,0.00025205,2]
[355033373,1740876663586,-377.507149,0.00025205,7]
[355033374,1740876663597,-1882.04,0.00025205,2]
[355033375,1740876663608,-505.51,0.00025205,2]
[355033376,1740876663618,-377.507149,0.00025205,7]
[355033377,1740876663628,-1539.91,0.00025205,2]
[355033378,1740876663639,-500.0,0.00025205,2]
[355033379,1740876663650,-500.0,0.00025205,2]
[355033380,1740876663660,-500.0,0.00025205,2]
[355033381,1740876663670,-500.0,0.00025205,2]
[355033382,1740876663680,-2050.37,0.00025205,2]
[355033383,1740876663690,-389.3726685,0.00025205,2]
[355033384,1740876663701,-500.0,0.00025205,2]
[355033385,1740876663711,-500.0,0.00025205,2]
[355033386,1740876663722,-1442.12,0.00025205,2]
[355033387,1740876663737,-500.0,0.00025205,2]
[355033388,1740876663752,-354.614926,0.00025205,7]
[355033389,1740876663763,-2513.6879109,0.00025237,4]
[355033390,1740876663773,-1030.020155,0.000253,7]
[355033391,1740876663783,-1030.020155,0.000253,7]
[355033392,1740876663795,-152.943537,0.000253,7]
[355033393,1740876663807,-162.635591,0.000253,7]
[355033394,1740876663818,-162.635591,0.000253,7]
[355033395,1740876663828,-346.449302,0.000253,7]
[355033396,1740876663839,-346.449302,0.000253,7]
[355033397,1740876663849,-500.0,0.000253,2]
[355033398,1740876663860,-800.0,0.00025312,2]
[355033399,1740876663870,-200.0,0.0002533,16]
[355033400,1740876663880,-500.0,0.000254,2]
[355033401,1740876663889,-624.0,0.000254,2]
[355033402,1740876663900,-711.23668703,0.00025429,2]
[355033403,1740876663910,-800.0,0.00025457,2]
[355033404,1740876663919,-150.0,0.00025458,2]
[355033405,1740876663929,-150.0,0.00025458,2]
[355033406,1740876663940,-397.0,0.00025458,2]
[355033407,1740876663951,-6666.66666667,0.00025467,2]
[355033408,1740876663962,-6479.22,0.00025467,2]
[355033409,1740876663974,-800.0,0.0002547,2]
[355033410,1740876663986,-500.0,0.00025473,2]
[355033411,1740876663996,-500.0,0.00025473,2]
[355033412,1740876664007,-500.0,0.00025473,2]
[355033413,1740876664016,-151.0,0.00025473,7]
[355033414,1740876664026,-151.0,0.00025473,7]
[355033415,1740876664036,-151.0,0.00025473,7]
[355033416,1740876664048,-164.37568423,0.00025478,2]
[355033417,1740876664060,-105349.49989346,0.00025478,4]
[355033418,1740876664069,-320432.73089281,0.00025478,4]
[355033419,1740876664079,-269.040221,0.00025479,7]
[355033420,1740876664089,-151.0,0.00025479,7]
[355033421,1740876664099,-151.0,0.00025479,7]
[355033422,1740876664110,-151.0,0.00025479,7]
[355033423,1740876664121,-151.0,0.00025479,7]
[355033424,1740876664132,-151.0,0.00025479,7]
[355033425,1740876664142,-154.958106,0.00025479,7]
[355033426,1740876664152,-209.62608574,0.00025479,2]
[355033427,1740876664163,-500.0,0.00025479,2]
[355033428,1740876664173,-500.0,0.00025479,2]
[355033429,1740876664183,-500.0,0.00025479,2]
[355033430,1740876664194,-659.79,0.00025479,2]
[355033431,1740876664205,-500.0,0.00025479,2]
[355033432,1740876664216,-151.0,0.00025479,7]
[355033433,1740876664226,-1457.98,0.00025479,2]
[355033434,1740876664237,-500.0,0.00025479,2]
[355033435,1740876664247,-500.0,0.00025479,2]
[355033436,1740876664258,-554.82,0.00025479,2]
[355033437,1740876664268,-500.0,0.00025479,2]
[355033438,1740876664278,-151.0,0.00025479,7]
[355033439,1740876664288,-880.95,0.00025479,2]
[355033440,1740876664299,-151.0,0.00025479,7]
[355033441,1740876664310,-500.0,0.00025479,2]
[355033442,1740876664320,-500.0,0.00025479,2]
[355033443,1740876664330,-151.0,0.00025479,7]
[355033444,1740876664340,-500.0,0.00025479,2]
[355033445,1740876664350,-500.0,0.00025479,2]
[355033446,1740876664360,-500.0,0.00025479,2]
[355033447,1740876664369,-500.0,0.00025479,2]
[355033448,1740876664379,-500.0,0.00025479,2]
[355033449,1740876664389,-151.0,0.00025479,7]
[355033450,1740876664399,-500.0,0.00025479,2]
[355033451,1740876664409,-160.871652,0.00025479,7]
[355033452,1740876664419,-500.0,0.00025479,2]
[355033453,1740876664429,-500.0,0.00025479,2]
[355033454,1740876664440,-500.0,0.00025479,2]
[355033455,1740876664450,-802.53,0.00025479,2]
[355033456,1740876664461,-580.95329574,0.00025479,2]
[355033457,1740876664471,-1243.36,0.00025479,2]
[355033458,1740876664482,-500.0,0.00025479,2]
[355033459,1740876664492,-151.0,0.00025479,7]
[355033460,1740876664503,-500.0,0.00025479,2]
[355033461,1740876664512,-500.0,0.00025479,2]
[355033462,1740876664522,-500.0,0.00025479,2]
[355033463,1740876664532,-500.0,0.00025479,2]
[355033464,1740876664541,-151.0,0.00025479,7]
[355033465,1740876664553,-500.0,0.00025479,2]
[355033466,1740876664566,-500.0,0.00025479,2]
[355033467,1740876664577,-500.0,0.00025479,2]
[355033468,1740876664586,-500.0,0.00025479,2]
[355033469,1740876664596,-151.0,0.00025479,7]
[355033470,1740876664606,-500.0,0.00025479,2]
[355033471,1740876664616,-1372.88,0.00025479,2]
[355033472,1740876664627,-753.47,0.00025479,2]
[355033473,1740876664637,-517.4246082,0.00025479,2]
[355033474,1740876664647,-500.0,0.00025479,2]
[355033475,1740876664657,-500.0,0.00025479,2]
[355033476,1740876664667,-500.0,0.00025479,2]
[355033477,1740876664676,-500.0,0.00025479,2]
[355033478,1740876664686,-500.0,0.00025479,2]
[355033479,1740876664695,-500.0,0.00025479,2]
[355033480,1740876664705,-500.0,0.00025479,2]
[355033481,1740876664714,-500.0,0.00025479,2]
[355033482,1740876664724,-500.0,0.00025479,2]
[355033483,1740876664734,-500.0,0.00025479,2]
[355033484,1740876664744,-407.70227789,0.00025479,2]
[355033485,1740876664754,-151.0,0.00025479,7]
[355033486,1740876664764,-500.0,0.00025479,2]
[355033487,1740876664773,-151.0,0.00025479,7]
[355033488,1740876664784,-500.0,0.00025479,2]
[355033489,1740876664793,-500.0,0.00025479,2]
[355033490,1740876664806,-500.0,0.00025479,2]
[355033491,1740876664816,-154.87669,0.00025479,7]
[355033492,1740876664825,-508.18433206,0.00025479,2]
[355033493,1740876664835,-945.73,0.00025479,2]
[355033494,1740876664845,-500.0,0.00025479,2]
[355033495,1740876664854,-151.0,0.00025479,7]
[355033496,1740876664864,-151.0,0.00025479,7]
[355033497,1740876664873,-500.0,0.00025479,2]
[355033498,1740876664883,-500.0,0.00025479,2]
[355033499,1740876664892,-151.0,0.00025479,7]
[355033500,1740876664901,-151.0,0.00025479,7]
[355033501,1740876664911,-918.66,0.00025479,2]
[355033502,1740876664921,-500.0,0.00025479,2]
[355033503,1740876664931,-241.204969,0.00025479,7]
[355033504,1740876664940,-241.204969,0.00025479,7]
[355033505,1740876664950,-500.0,0.00025479,2]
[355033506,1740876664961,-241.204969,0.00025479,7]
[355033507,1740876664973,-241.204969,0.00025479,7]
[355033508,1740876664982,-470.63071331,0.00025479,2]
[355033509,1740876664991,-271.111896,0.00025479,7]
[355033510,1740876665001,-271.111896,0.00025479,7]
[355033511,1740876665012,-500.0,0.00025479,2]
[355033512,1740876665023,-271.111896,0.00025479,7]
[355033513,1740876665033,-271.111896,0.00025479,7]
[355033514,1740876665045,-151.0,0.00025479,7]
[355033515,1740876665058,-151.0,0.00025479,7]
[355033516,1740876665068,-500.0,0.00025479,2]
[355033517,1740876665084,-151.0,0.00025479,7]
[355033518,1740876665094,-151.0,0.00025479,7]
[355033519,1740876665103,-612.93,0.00025479,2]
[355033520,1740876665112,-500.0,0.00025479,2]
[355033521,1740876665122,-500.0,0.00025479,2]
[355033522,1740876665131,-151.0,0.00025479,7]
[355033523,1740876665141,-500.0,0.00025479,2]
[355033524,1740876665150,-500.0,0.00025479,2]
[355033525,1740876665160,-500.0,0.00025479,2]
[355033526,1740876665170,-719.8,0.00025479,2]
[355033527,1740876665179,-500.0,0.00025479,2]
[355033528,1740876665188,-500.0,0.00025479,2]
[355033529,1740876665197,-500.0,0.00025479,2]
[355033530,1740876665208,-551.54,0.00025479,2]
[355033531,1740876665217,-1058.42,0.00025479,2]
[355033532,1740876665227,-500.0,0.00025479,2]
[355033533,1740876665235,-922.23,0.00025479,2]
[355033534,1740876665244,-500.67738153,0.00025479,2]
[355033535,1740876665254,-500.0,0.00025479,2]
[355033536,1740876665263,-1362.17,0.00025479,2]
[355033537,1740876665273,-500.0,0.00025479,2]
[355033538,1740876665282,-500.0,0.00025479,2]
[355033539,1740876665292,-500.0,0.00025479,2]
[355033540,1740876665302,-1272.96,0.00025479,2]
[355033541,1740876665312,-500.0,0.00025479,2]
[355033542,1740876665322,-1246.96,0.00025479,2]
[355033543,1740876665331,-752.43,0.00025479,2]
[355033544,1740876665341,-500.0,0.00025479,2]
[355033545,1740876665350,-500.0,0.00025479,2]
[355033546,1740876665360,-500.0,0.00025479,2]
[355033547,1740876665369,-1291.1,0.00025479,2]
[355033548,1740876665378,-500.0,0.00025479,2]
[355033549,1740876665388,-500.0,0.00025479,2]
[355033550,1740876665397,-509.54,0.00025479,2]
[355033551,1740876665407,-608.87,0.00025479,2]
[355033552,1740876665416,-500.0,0.00025479,2]
[355033553,1740876665425,-775.87,0.00025479,2]
[355033554,1740876665434,-500.0,0.00025479,2]
[355033555,1740876665444,-864.16,0.00025479,2]
[355033556,1740876665453,-1750.01,0.00025479,2]
[355033557,1740876665463,-500.0,0.00025479,2]
[355033558,1740876665474,-1643.39,0.00025479,2]
[355033559,1740876665483,-639.73,0.00025479,2]
[355033560,1740876665493,-1921.73,0.00025479,2]
[355033561,1740876665503,-500.0,0.00025479,2]
[355033562,1740876665513,-500.0,0.00025479,2]
[355033563,1740876665523,-500.0,0.00025479,2]
[355033564,1740876665533,-1202.94,0.00025479,2]
[355033565,1740876665543,-500.0,0.00025479,2]
[355033566,1740876665554,-500.0,0.00025479,2]
[355033567,1740876665564,-500.0,0.00025479,2]
[355033568,1740876665574,-500.0,0.00025479,2]
[355033569,1740876665583,-500.0,0.00025479,2]
[355033570,1740876665592,-500.0,0.00025479,2]
[355033571,1740876665602,-500.0,0.00025479,2]
[355033572,1740876665611,-500.0,0.00025479,2]
[355033573,1740876665621,-500.0,0.00025479,2]
[355033574,1740876665630,-1335.97,0.00025479,2]
[355033575,1740876665640,-1030.020155,0.00025479,7]
[355033576,1740876665651,-1030.020155,0.00025479,7]
[355033577,1740876665662,-500.0,0.00025479,2]
[355033578,1740876665672,-500.0,0.00025479,2]
[355033579,1740876665681,-789.94,0.00025479,2]
[355033580,1740876665691,-1591.3,0.00025479,2]
[355033581,1740876665701,-500.0,0.00025479,2]
[355033582,1740876665711,-500.0,0.00025479,2]
[355033583,1740876665720,-500.0,0.00025479,2]
[355033584,1740876665730,-500.0,0.00025479,2]
[355033585,1740876665740,-501.57,0.00025479,2]
[355033586,1740876665750,-500.0,0.00025479,2]
[355033587,1740876665761,-500.0,0.00025479,2]
[355033588,1740876665770,-1668.27,0.00025479,2]
[355033589,1740876665780,-500.0,0.00025479,2]
[355033590,1740876665790,-601.19,0.00025479,2]
[355033591,1740876665801,-500.0,0.00025479,2]
[355033592,1740876665811,-500.0,0.00025479,2]
[355033593,1740876665821,-500.0,0.00025479,2]
[355033594,1740876665831,-500.0,0.00025479,2]
[355033595,1740876665840,-162.635591,0.00025479,7]
[355033596,1740876665850,-500.0,0.00025479,2]
[355033597,1740876665860,-724.55,0.00025479,2]
[355033598,1740876665871,-162.635591,0.00025479,7]
[355033599,1740876665881,-500.0,0.00025479,2]
[355033600,1740876665891,-1310.51,0.00025479,2]
[355033601,1740876665901,-1999.0,0.00025479,2]
[355033602,1740876665911,-500.0,0.00025479,2]
[355033603,1740876665922,-346.449302,0.00025479,7]
[355033604,1740876665931,-346.449302,0.00025479,7]
[355033605,1740876665942,-500.0,0.00025479,2]
[355033606,1740876665952,-500.0,0.00025479,2]
[355033607,1740876665962,-500.0,0.00025479,2]
[355033608,1740876665975,-500.0,0.00025479,2]
[355033609,1740876665985,-500.0,0.00025479,2]
[355033610,1740876665995,-500.0,0.00025479,2]
[355033611,1740876666007,-500.0,0.00025479,2]
[355033612,1740876666018,-653.38,0.00025479,2]
[355033613,1740876666029,-501.39,0.00025479,2]
[355033614,1740876666040,-500.0,0.00025479,2]
[355033615,1740876666053,-847.56,0.00025479,2]
[355033616,1740876666062,-3235.54,0.00025479,2]
[355033617,1740876666072,-500.0,0.00025479,2]
[355033618,1740876666082,-500.0,0.00025479,2]
[355033619,1740876666092,-292.87633386,0.00025479,2]
[355033620,1740876666102,-500.0,0.00025479,2]
[355033621,1740876666112,-1948.23,0.00025479,2]
[355033622,1740876666122,-932.1,0.00025479,2]
[355033623,1740876666132,-1378.883154,0.00025479,7]
[355033624,1740876666142,-1378.883154,0.00025479,7]
[355033625,1740876666153,-1273.85,0.00025479,2]
[355033626,1740876666164,-2046.87,0.00025479,2]
[355033627,1740876666174,-1378.883154,0.00025479,7]
[355033628,1740876666185,-1378.883154,0.00025479,7]
[355033629,1740876666195,-575.35,0.00025479,2]
[355033630,1740876666205,-500.0,0.00025479,2]
[355033631,1740876666217,-500.0,0.00025479,2]
[355033632,1740876666227,-500.0,0.00025479,2]
[355033633,1740876666237,-639.03,0.00025479,2]
[355033634,1740876666247,-329.919589,0.00025479,7]
[355033635,1740876666258,-329.919589,0.00025479,7]
[355033636,1740876666268,-500.0,0.00025479,2]
[355033637,1740876666278,-500.0,0.00025479,2]
[355033638,1740876666288,-560.12,0.00025479,2]
[355033639,1740876666298,-329.919589,0.00025479,7]
[355033640,1740876666309,-329.919589,0.00025479,7]
[355033641,1740876666319,-500.0,0.00025479,2]
[355033642,1740876666329,-500.0,0.00025479,2]
[355033643,1740876666339,-1284.82,0.00025479,2]
[355033644,1740876666349,-822.783875,0.00025479,7]
[355033645,1740876666359,-822.783875,0.00025479,7]
[355033646,1740876666368,-2526.17,0.00025479,2]
[355033647,1740876666379,-500.0,0.00025479,2]
[355033648,1740876666388,-850.86,0.00025479,2]
[355033649,1740876666398,-500.0,0.00025479,2]
[355033650,1740876666408,-151.0,0.00025479,7]
[355033651,1740876666418,-158.079616,0.00025479,7]
[355033652,1740876666427,-1370.2,0.00025479,2]
[355033653,1740876666437,-500.0,0.00025479,2]
[355033654,1740876666447,-500.0,0.00025479,2]
[355033655,1740876666459,-500.0,0.00025479,2]
[355033656,1740876666469,-500.0,0.00025479,2]
[355033657,1740876666479,-500.86,0.00025479,2]
[355033658,1740876666489,-500.0,0.00025479,2]
[355033659,1740876666498,-500.0,0.00025479,2]
[355033660,1740876666508,-1211.92,0.00025479,2]
[355033661,1740876666518,-168.040248,0.00025479,7]
[355033662,1740876666528,-168.040248,0.00025479,7]
[355033663,1740876666538,-1549.58243,0.00025479,7]
[355033664,1740876666548,-1549.58243,0.00025479,7]
[355033665,1740876666559,-168.040248,0.00025479,7]
[355033666,1740876666569,-168.040248,0.00025479,7]
[355033667,1740876666579,-151.0,0.00025479,7]
[355033668,1740876666589,-151.0,0.00025479,7]
[355033669,1740876666599,-1549.58243,0.00025479,7]
[355033670,1740876666609,-1549.58243,0.00025479,7]
[355033671,1740876666619,-500.0,0.00025479,2]
[355033672,1740876666630,-1015.84,0.00025479,2]
[355033673,1740876666640,-500.0,0.00025479,2]
[355033674,1740876666650,-1353.57,0.00025479,2]
[355033675,1740876666661,-620.81,0.00025479,2]
[355033676,1740876666672,-500.0,0.00025479,2]
[355033677,1740876666682,-500.0,0.00025479,2]
[355033678,1740876666692,-500.0,0.00025479,2]
[355033679,1740876666702,-500.0,0.00025479,2]
[355033680,1740876666712,-500.0,0.00025479,2]
[355033681,1740876666722,-1940.16,0.00025479,2]
[355033682,1740876666732,-1145.6,0.00025479,2]
[355033683,1740876666742,-500.0,0.00025479,2]
[355033684,1740876666752,-500.0,0.00025479,2]
[355033685,1740876666763,-500.0,0.00025479,2]
[355033686,1740876666773,-500.0,0.00025479,2]
[355033687,1740876666783,-669.07,0.00025479,2]
[355033688,1740876666794,-570.7,0.00025479,2]
[355033689,1740876666807,-499.638185,0.00025479,7]
[355033690,1740876666817,-499.638185,0.00025479,7]
[355033691,1740876666828,-499.638185,0.00025479,7]
[355033692,1740876666838,-499.638185,0.00025479,7]
[355033693,1740876666849,-500.0,0.00025479,2]
[355033694,1740876666859,-1061.33,0.00025479,2]
[355033695,1740876666870,-500.0,0.00025479,2]
[355033696,1740876666880,-500.0,0.00025479,2]
[355033697,1740876666891,-500.0,0.00025479,2]
[355033698,1740876666901,-992.68,0.00025479,2]
[355033699,1740876666912,-500.0,0.00025479,2]
[355033700,1740876666922,-518.98597681,0.00025479,2]
[355033701,1740876666932,-500.0,0.00025479,2]
[355033702,1740876666943,-1062.0,0.00025479,2]
[355033703,1740876666954,-1097.86,0.00025479,2]
[355033704,1740876666967,-153.76715891,0.00025479,2]
[355033705,1740876666977,-505.23536334,0.00025479,2]
[355033706,1740876666988,-500.0,0.00025479,2]
[355033707,1740876666998,-500.0,0.00025479,2]
[355033708,1740876667009,-1272.49,0.00025479,2]
[355033709,1740876667019,-500.0,0.00025479,2]
[355033710,1740876667030,-521.52329544,0.00025479,2]
[355033711,1740876667042,-299.37873182,0.00025479,2]
[355033712,1740876667052,-500.0,0.00025479,2]
[355033713,1740876667063,-500.0,0.00025479,2]
[355033714,1740876667074,-500.0,0.00025479,2]
[355033715,1740876667085,-500.0,0.00025479,2]
[355033716,1740876667095,-744.89,0.00025479,2]
[355033717,1740876667106,-500.0,0.00025479,2]
[355033718,1740876667117,-151.0,0.00025479,7]
[355033719,1740876667128,-500.0,0.00025479,2]
[355033720,1740876667138,-151.0,0.00025479,7]
[355033721,1740876667149,-500.0,0.00025479,2]
[355033722,1740876667160,-267.226842,0.00025479,7]
[355033723,1740876667171,-267.226842,0.00025479,7]
[355033724,1740876667182,-777.48,0.00025479,2]
[355033725,1740876667193,-2029.22,0.00025479,2]
[355033726,1740876667203,-267.226842,0.00025479,7]
[355033727,1740876667214,-151.0,0.00025479,7]
[355033728,1740876667225,-267.226842,0.00025479,7]
[355033729,1740876667236,-151.0,0.00025479,7]
[355033730,1740876667246,-500.0,0.00025479,2]
[355033731,1740876667256,-500.0,0.00025479,2]
[355033732,1740876667266,-1259.12,0.00025479,2]
[355033733,1740876667276,-500.0,0.00025479,2]
[355033734,1740876667286,-500.0,0.00025479,2]
[355033735,1740876667296,-500.0,0.00025479,2]
[355033736,1740876667307,-576.56,0.00025479,2]
[355033737,1740876667317,-600.08,0.00025479,2]
[355033738,1740876667327,-961.34,0.00025479,2]
[355033739,1740876667337,-541.34,0.00025479,2]
[355033740,1740876667347,-839.46,0.00025479,2]
[355033741,1740876667357,-1248.66,0.00025479,2]
[355033742,1740876667368,-636.81,0.00025479,2]
[355033743,1740876667378,-373.60693392,0.00025479,2]
[355033744,1740876667387,-4855.88,0.00025479,2]
[355033745,1740876667397,-1405.36,0.00025479,2]
[355033746,1740876667407,-500.0,0.00025479,2]
[355033747,1740876667417,-1716.67,0.00025479,2]
[355033748,1740876667427,-787.41,0.00025479,2]
[355033749,1740876667437,-4078.59,0.00025479,2]
[355033750,1740876667447,-674.62,0.00025479,2]
[355033751,1740876667457,-11790.14,0.00025479,2]
[355033752,1740876667467,-500.0,0.00025479,2]
[355033753,1740876667478,-500.0,0.00025479,2]
[355033754,1740876667488,-1016.83,0.00025479,2]
[355033755,1740876667498,-500.0,0.00025479,2]
[355033756,1740876667508,-2008.6,0.00025479,2]
[355033757,1740876667518,-2258.79,0.00025479,2]
[355033758,1740876667528,-500.0,0.00025479,2]
[355033759,1740876667538,-500.0,0.00025479,2]
[355033760,1740876667548,-720.87,0.00025479,2]
[355033761,1740876667559,-500.95402503,0.00025479,2]
[355033762,1740876667571,-847.12,0.00025479,2]
[355033763,1740876667581,-2355.91,0.00025479,2]